bitfinex/quotes_SOLUSD_20250710
["timestamp","ask_amount","ask_price","bid_price","bid_amount"]
[1752155790483,10.19756292,157.11,157.07,0.67]
[1752155790690,10.88756292,157.11,157.07,0.67]
[1752155791206,17.25255407,157.11,157.06,10.19756292]
[1752155791376,17.25255407,157.11,157.09,0.03]
[1752155791576,7.05499115,157.11,157.09,0.03]
[1752155791802,0.69,157.13,157.09,10.22756292]
[1752155791978,0.14216157,157.15,157.11,10.19756292]
[1752155791979,10.88756292,157.15,157.11,10.19756292]
[1752155792180,26.0,157.16,157.11,10.19756292]
[1752155792181,16.5606291,157.16,157.11,10.86756292]
[1752155792385,10.19756292,157.16,157.12,10.19756292]
[1752155792586,36.88756292,157.16,157.12,10.19756292]
[1752155792880,10.19756292,157.15,157.11,0.67]
[1752155793084,10.88756292,157.15,157.11,10.19756292]
[1752155794803,17.25106563,157.15,157.11,10.19756292]
[1752155795207,0.69,157.17,157.11,10.86756292]
[1752155795395,10.88756292,157.17,157.13,10.19756292]
[1752155795792,32.36213258,157.18,157.13,10.86756292]
[1752155795988,32.36213258,157.18,157.14,10.86756292]
[1752155795989,10.19756292,157.18,157.14,10.86756292]
[1752155796887,16.5594116,157.19,157.15,10.86756292]
[1752155797083,17.2494116,157.19,157.15,10.86756292]
[1752155797282,17.2494116,157.19,157.14,10.19756292]
[1752155797495,10.88756292,157.18,157.14,10.19756292]
[1752155797700,10.88756292,157.18,157.13,10.86756292]
[1752155798079,10.88756292,157.18,157.14,10.19756292]
[1752155799008,7.05249167,157.18,157.14,10.19756292]
[1752155799211,17.25005459,157.18,157.14,10.19756292]
[1752155799389,6.36249167,157.18,157.14,10.86756292]
[1752155799587,6.3617864,157.19,157.14,10.86756292]
[1752155799795,7.0517864,157.19,157.14,10.86756292]
[1752155800383,6.3617864,157.19,157.14,10.19756292]
[1752155800692,33.05147139,157.2,157.15,10.86756292]
[1752155800891,33.05147139,157.2,157.16,10.86756292]
[1752155800892,32.36147139,157.2,157.16,10.86756292]
[1752155801093,43.24903431,157.2,157.16,10.86756292]
[1752155801506,10.88756292,157.19,157.15,10.19756292]
[1752155801808,0.69,157.19,157.15,10.19756292]
[1752155801996,10.88756292,157.19,157.15,10.19756292]
[1752155802594,17.24861289,157.21,157.17,10.19756292]
[1752155803611,0.69,157.2,157.16,0.67]
[1752155803794,10.88756292,157.2,157.16,10.86756292]
[1752155805004,0.69,157.2,157.16,10.86756292]
[1752155805197,16.55859242,157.21,157.17,10.86756292]
[1752155805506,17.24859242,157.21,157.17,10.86756292]
[1752155805899,26.0,157.23,157.18,0.67]
[1752155806220,33.05019561,157.23,157.19,0.67]
[1752155806616,43.24775853,157.23,157.17,7.03234855]
[1752155806790,43.24775853,157.23,157.18,0.67]
[1752155807116,33.05019561,157.23,157.19,0.67]
[1752155807297,0.69,157.23,157.19,0.67]
[1752155808112,0.69,157.23,157.17,6.36253737]
[1752155808322,0.69,157.23,157.17,7.03253737]
[1752155809024,7.05016851,157.23,157.17,7.03253737]
[1752155809195,7.05016851,157.23,157.17,6.36253737]
[1752155809400,7.05016851,157.23,157.18,7.0619127]
[1752155809599,7.05016851,157.23,157.19,0.7]
[1752155810196,7.05016851,157.23,157.17,6.36228742]
[1752155810197,7.05016851,157.23,157.17,7.06228742]
[1752155810400,17.24773143,157.23,157.17,7.06228742]
[1752155811322,0.66,157.22,157.15,26.7]
[1752155811503,10.19756292,157.18,157.13,28.84721178]
[1752155811696,0.66,157.18,157.14,10.89756292]
[1752155811903,0.66,157.18,157.15,10.19756292]
[1752155812126,0.66,157.18,157.14,10.89756292]
[1752155812506,10.85756292,157.17,157.12,0.7]
[1752155812717,10.19756292,157.15,157.11,18.64964886]
[1752155812897,59.32,157.18,157.1,10.19756292]
[1752155812898,10.85756292,157.14,157.1,10.19756292]
[1752155813098,0.66,157.14,157.1,10.89756292]
[1752155813516,16.56120536,157.15,157.11,10.19756292]
[1752155813821,16.56120536,157.15,157.11,10.89756292]
[1752155814126,17.22120536,157.15,157.11,10.89756292]
[1752155814294,16.56120536,157.15,157.11,10.19756292]
[1752155814500,0.66,157.14,157.1,10.22756292]
[1752155815519,0.66,157.13,157.1,10.22756292]
[1752155815831,0.66,157.12,157.1,0.03]
[1752155816214,10.19756292,157.13,157.1,0.03]
[1752155816731,0.66,157.12,157.1,0.03]
[1752155817510,7.02467722,157.12,157.1,0.03]
[1752155817713,0.66,157.14,157.1,0.03]
[1752155817921,10.85756292,157.13,157.1,0.03]
[1752155818111,0.66,157.13,157.1,0.03]
[1752155819109,10.19756292,157.14,157.1,0.03]
[1752155819427,10.85756292,157.13,157.1,0.03]
[1752155819731,17.22194909,157.13,157.1,0.03]
[1752155820317,7.02438617,157.13,157.1,0.03]
[1752155820530,17.22194909,157.13,157.1,0.03]
[1752155821121,0.66,157.12,157.1,0.03]
[1752155821622,0.66,157.11,157.1,0.03]
[1752155822015,6.36470478,157.12,157.1,0.03]
[1752155823126,7.02470478,157.12,157.1,0.03]
[1752155823529,0.66,157.11,157.1,0.03]
[1752155823730,10.85756292,157.11,157.1,0.03]
[1752155824826,36.85756292,157.11,157.1,0.03]
[1752155825024,26.0,157.1,157.09,0.03]
[1752155825222,70.31972449,157.1,157.09,0.03]
[1752155825632,76.54293529,157.1,157.09,0.03]
[1752155827236,76.68509686,157.1,157.09,0.03]
[1752155828837,76.82725843,157.1,157.09,1e-08]
[1752155832650,76.68509686,157.1,157.09,1e-08]
[1752155832860,66.48753394,157.1,157.09,1e-08]
[1752155833145,73.30429178,157.1,157.09,1e-08]
[1752155833449,73.44645335,157.1,157.09,1e-08]
[1752155833633,121.04458458,157.1,156.98,8.2026]
[1752155833940,6.36861546,157.02,156.98,25.4664067]
[1752155834131,6.36861546,157.02,156.98,26.1664067]
[1752155834334,6.36861546,157.02,156.98,7.51675784]
[1752155834545,6.36829799,157.03,156.99,7.51675784]
[1752155834726,6.36782291,157.04,157.01,6.81675784]
[1752155834928,6.36755116,157.05,157.01,10.92928673]
[1752155835438,7.02755116,157.05,157.01,10.92928673]
[1752155836448,6.36755116,157.05,157.01,10.92928673]
[1752155836830,17.25683789,157.05,157.01,0.7]
[1752155837041,16.59683789,157.05,157.01,0.7]
[1752155837243,59.48216157,157.07,157.02,0.7]
[1752155837244,26.0,157.07,157.02,0.7]
[1752155837446,26.0,157.07,157.04,10.22928673]
[1752155837752,0.66,157.08,157.04,10.92928673]
[1752155837753,7.02630865,157.08,157.04,10.92928673]
[1752155837943,32.36591653,157.09,157.05,0.7]
[1752155838146,6.36500065,157.11,157.06,10.92928673]
[1752155838326,6.36500065,157.11,157.07,10.92928673]
[1752155838530,6.36500065,157.11,157.08,10.92928673]
[1752155838948,6.36471659,157.12,157.08,10.92928673]
[1752155839148,6.36471659,157.12,157.09,10.93928673]
[1752155839850,6.36471659,157.12,157.1,10.22928673]
[1752155840241,6.36375206,157.14,157.1,10.93928673]
[1752155840454,26.0,157.14,157.12,10.22928673]
[1752155840742,6.36323702,157.16,157.12,10.93928673]
[1752155840950,17.27252375,157.16,157.12,10.93928673]
[1752155841344,6.36323702,157.16,157.13,0.71]
[1752155841540,6.36323702,157.16,157.12,10.22928673]
[1752155841851,6.36323702,157.16,157.12,10.93928673]
[1752155842430,0.68,157.18,157.13,10.93928673]
[1752155842629,0.68,157.18,157.14,0.71]
[1752155842837,0.68,157.18,157.14,10.22928673]
[1752155843043,10.90928673,157.18,157.14,10.22928673]
[1752155843637,6.36253737,157.17,157.15,10.22928673]
[1752155843838,6.36253737,157.17,157.14,10.22928673]
[1752155844139,6.36253737,157.17,157.15,10.22928673]
[1752155844451,6.36253737,157.17,157.14,10.93928673]
[1752155844847,6.36253737,157.17,157.12,0.71]
[1752155845179,0.68,157.16,157.11,10.22928673]
[1752155845342,10.90928673,157.16,157.11,10.93928673]
[1752155845653,6.36334712,157.15,157.12,10.93928673]
[1752155846559,7.04334712,157.15,157.11,10.22928673]
[1752155846736,7.04334712,157.15,157.11,15.25590077]
[1752155846935,7.04334712,157.15,157.11,15.96590077]
[1752155846936,6.36334712,157.15,157.11,15.96590077]
[1752155847850,6.36334712,157.15,157.11,10.93928673]
[1752155848056,6.36334712,157.15,157.12,10.22928673]
[1752155848245,6.36334712,157.15,157.12,10.93928673]
[1752155848465,6.36334712,157.15,157.13,0.71]
[1752155848766,6.36334712,157.15,157.12,10.22928673]
[1752155849132,6.36334712,157.15,157.12,0.71]
[1752155849337,6.36334712,157.15,157.12,10.93928673]
[1752155850051,6.36253737,157.17,157.13,10.93928673]
[1752155850362,6.36253737,157.17,157.14,10.93928673]
[1752155851160,6.36253737,157.17,157.15,0.71]
[1752155851742,6.36223665,157.18,157.16,10.93928673]
[1752155851942,32.36186134,157.19,157.16,10.93928673]
[1752155852169,6.36186134,157.19,157.17,10.22928673]
[1752155852659,6.36186134,157.19,157.16,10.93928673]
[1752155853567,6.36186134,157.19,157.16,10.22928673]
[1752155853771,6.36186134,157.19,157.16,10.93928673]
[1752155854140,6.36132315,157.2,157.16,10.93928673]
[1752155854558,7.04132315,157.2,157.16,10.93928673]
[1752155855261,6.36132315,157.2,157.17,0.71]
[1752155855766,6.36108729,157.21,157.19,10.22928673]
[1752155856548,7.04108729,157.21,157.17,18.64964886]
[1752155856743,7.04108729,157.21,157.16,0.71]
[1752155856744,0.68,157.2,157.16,0.71]
[1752155857052,6.8054491,157.2,157.16,6.8054491]
[1752155857365,13.16653639,157.21,157.17,7.5154491]
[1752155857667,6.36108729,157.21,157.18,7.5154491]
[1752155857969,6.3606656,157.22,157.19,6.8054491]
[1752155858958,0.06,157.2,157.19,6.8054491]
[1752155859158,0.06,157.2,157.19,7.5154491]
[1752155861345,0.06,157.2,157.19,26.16509796]
[1752155861763,0.06,157.2,157.19,32.5268258]
[1752155861955,0.06,157.2,157.19,39.3322749]
[1752155863147,0.06,157.2,157.19,39.61659804]
[1752155863457,0.06,157.23,157.2,18.933972]
[1752155863649,0.06,157.23,157.22,6.8054491]
[1752155863853,0.06,157.23,157.22,40.0854491]
[1752155864150,0.06,157.23,157.22,40.7954491]
[1752155864351,0.06,157.23,157.22,65.94777345]
[1752155864944,0.06,157.23,157.22,65.80561188]
[1752155865147,0.06,157.23,157.22,66.08993502]
[1752155865562,0.06,157.27,157.23,18.79181043]
[1752155865755,0.06,157.27,157.26,25.45509796]
[1752155865948,0.06,157.27,157.26,63.99719286]
[1752155866153,0.06,157.27,157.26,64.70719286]
[1752155866350,0.06,157.27,157.26,71.06608895]
[1752155867162,0.06,157.27,157.26,64.26063985]
[1752155867358,0.06,157.27,157.26,71.06608895]
[1752155867570,0.06,157.27,157.26,104.01369962]
[1752155867875,0.2,157.29,157.28,44.79181043]
[1752155868062,0.2,157.29,157.28,58.40270863]
[1752155868260,0.2,157.29,157.28,65.47079611]
[1752155869574,0.2,157.29,157.28,51.85989791]
[1752155869776,0.2,157.29,157.28,85.42509796]
[1752155870078,0.2,157.29,157.28,59.42509796]
[1752155870460,0.2,157.29,157.28,65.78318544]
[1752155870776,0.2,157.29,157.28,72.73079611]
[1752155873874,0.2,157.29,157.28,65.92534701]
[1752155874061,0.2,157.29,157.28,18.64964886]
[1752155874377,0.89,157.29,157.27,40.0654491]
[1752155874705,7.24778592,157.29,157.27,40.0654491]
[1752155875371,0.69,157.28,157.23,0.7]
[1752155875574,0.69,157.27,157.24,18.64964886]
[1752155875777,6.8054491,157.26,157.22,6.8054491]
[1752155875974,0.69,157.25,157.22,33.24]
[1752155876284,7.04958315,157.25,157.22,40.0454491]
[1752155876583,0.69,157.24,157.22,40.0454491]
[1752155877070,6.35958315,157.25,157.22,40.0454491]
[1752155877388,7.04958315,157.25,157.22,40.0454491]
[1752155877780,7.04958315,157.25,157.22,33.24]
[1752155877989,7.04958315,157.25,157.22,40.0454491]
[1752155878361,0.69,157.24,157.22,40.0454491]
[1752155878662,7.04979967,157.24,157.22,40.0454491]
[1752155878863,0.69,157.23,157.22,33.26]
[1752155880478,7.04889609,157.26,157.22,43.46408777]
[1752155880661,0.69,157.25,157.22,43.46408777]
[1752155881197,0.89,157.29,157.24,10.20408777]
[1752155881399,0.69,157.28,157.25,43.44408777]
[1752155881783,0.75,157.27,157.25,33.24]
[1752155881988,0.69,157.26,157.24,10.20408777]
[1752155882218,0.69,157.26,157.25,33.24]
[1752155882371,0.06,157.27,157.25,33.24]
[1752155882578,0.75,157.27,157.25,33.24]
[1752155882897,0.69,157.26,157.25,33.24]
[1752155883096,0.69,157.26,157.24,33.24]
[1752155883494,0.69,157.25,157.23,33.24]
[1752155883688,0.06,157.27,157.23,43.44408777]
[1752155883689,0.75,157.27,157.23,43.44408777]
[1752155884375,0.75,157.27,157.24,10.20408777]
[1752155884776,0.06,157.27,157.26,10.20408777]
[1752155885199,0.06,157.27,157.26,10.90408777]
[1752155885404,0.06,157.27,157.26,29.55373663]
[1752155886688,0.06,157.27,157.26,35.91263272]
[1752155887188,0.06,157.27,157.26,25.70854495]
[1752155887373,0.06,157.27,157.26,35.91263272]
[1752155888004,0.06,157.27,157.23,36.20408777]
[1752155888211,0.75,157.27,157.25,10.20408777]
[1752155888382,0.69,157.26,157.24,33.24]
[1752155888600,0.06,157.27,157.25,10.20408777]
[1752155888799,0.06,157.27,157.26,33.24]
[1752155889132,0.75,157.27,157.25,33.24]
[1752155889308,0.75,157.27,157.25,43.44408777]
[1752155889736,0.06,157.27,157.26,10.20408777]
[1752155890441,0.06,157.27,157.25,43.44408777]
[1752155890603,0.06,157.27,157.26,10.20408777]
[1752155892096,0.06,157.27,157.25,43.44408777]
[1752155892329,0.06,157.27,157.26,10.20408777]
[1752155895305,0.06,157.27,157.26,10.90408777]
[1752155895522,0.06,157.27,157.26,10.20408777]
[1752155895722,10.95408777,157.27,157.22,18.64964886]
[1752155895925,0.69,157.26,157.23,33.24]
[1752155896229,0.69,157.26,157.23,43.44408777]
[1752155896926,7.04906119,157.26,157.23,43.44408777]
[1752155897428,6.41858055,157.27,157.23,43.44408777]
[1752155897602,7.10858055,157.27,157.23,44.14408777]
[1752155897803,7.10858055,157.27,157.23,43.44408777]
[1752155898011,7.10858055,157.27,157.23,33.24]
[1752155898212,0.69,157.26,157.23,43.44408777]
[1752155898736,6.41858055,157.27,157.23,44.14408777]
[1752155898910,6.41858055,157.27,157.25,10.20408777]
[1752155898911,0.06,157.27,157.25,10.20408777]
[1752155899536,0.06,157.27,157.26,10.20408777]
[1752155899832,0.06,157.27,157.25,33.89]
[1752155900035,0.06,157.27,157.25,43.42408777]
[1752155900215,0.06,157.27,157.25,33.22]
[1752155900416,0.76,157.27,157.25,43.42408777]
[1752155900611,0.06,157.27,157.25,43.42408777]
[1752155901124,0.06,157.27,157.25,40.01873928]
[1752155901324,0.76,157.27,157.25,40.01873928]
[1752155901911,0.7,157.26,157.25,33.22]
[1752155902230,0.7,157.26,157.21,40.01873928]
[1752155902406,0.7,157.26,157.22,7.46873928]
[1752155903008,7.05908171,157.26,157.21,33.22]
[1752155903207,7.05908171,157.26,157.18,26.0]
[1752155903208,6.79873928,157.24,157.19,6.79873928]
[1752155903541,6.79873928,157.24,157.22,0.03]
[1752155903542,0.7,157.23,157.22,0.03]
[1752155903856,6.79873928,157.25,157.22,0.03]
[1752155904352,7.49873928,157.25,157.22,0.03]
[1752155905044,6.3597049,157.24,157.22,0.03]
[1752155905239,7.55873928,157.27,157.23,6.79873928]
[1752155905411,7.0590557,157.26,157.23,6.79873928]
[1752155905607,0.7,157.25,157.22,33.25]
[1752155905846,0.7,157.25,157.22,40.04873928]
[1752155906432,0.7,157.24,157.22,0.03]
[1752155906627,6.79873928,157.23,157.22,0.03]
[1752155907027,13.85884867,157.23,157.22,0.03]
[1752155908525,14.00101024,157.23,157.22,0.03]
[1752155909312,14.14317181,157.23,157.22,0.03]
[1752155909533,14.14317181,157.23,157.13,6.79873928]
[1752155909534,0.14216157,157.22,157.13,6.79873928]
[1752155909834,0.14216157,157.22,157.12,18.64964886]
[1752155909835,6.79873928,157.18,157.14,6.79873928]
[1752155910135,7.49873928,157.18,157.14,6.79873928]
[1752155910527,13.86111255,157.18,157.14,6.79873928]
[1752155911340,13.86111255,157.18,157.14,7.46873928]
[1752155911840,7.06237327,157.18,157.14,7.46873928]
[1752155912144,0.7,157.17,157.13,6.79873928]
[1752155912434,6.36294222,157.16,157.12,0.67]
[1752155912636,7.06294222,157.16,157.13,6.79873928]
[1752155912934,6.36294222,157.16,157.12,6.79873928]
[1752155913126,0.7,157.18,157.14,6.79873928]
[1752155913320,7.49873928,157.18,157.14,7.46873928]
[1752155914024,0.7,157.17,157.14,6.79873928]
[1752155914532,7.06275256,157.17,157.14,6.79873928]
[1752155915643,6.36228472,157.18,157.15,7.46873928]
[1752155916427,6.36185014,157.19,157.16,6.79873928]
[1752155916623,7.06139951,157.2,157.17,6.79873928]
[1752155917022,6.79873928,157.18,157.13,18.64964886]
[1752155917227,6.79873928,157.16,157.12,6.79873928]
[1752155917435,7.49873928,157.16,157.12,6.79873928]
[1752155917832,7.49873928,157.16,157.12,7.46873928]
[1752155918041,7.49873928,157.16,157.12,0.67]
[1752155918249,6.79873928,157.17,157.13,7.46873928]
[1752155918647,13.1614281,157.17,157.13,7.46873928]
[1752155918843,13.86095455,157.18,157.14,7.46873928]
[1752155919227,7.06221527,157.18,157.14,7.46873928]
[1752155919442,13.86095455,157.18,157.14,0.67]
[1752155919622,13.86095455,157.18,157.14,7.46873928]
[1752155921053,6.36179271,157.19,157.15,7.46873928]
[1752155921348,7.06179271,157.19,157.16,6.79873928]
[1752155921545,7.06179271,157.19,157.15,7.46873928]
[1752155921747,0.7,157.18,157.15,6.79873928]
[1752155922233,0.7,157.17,157.14,6.79873928]
[1752155922746,7.06257087,157.17,157.14,6.79873928]
[1752155923466,7.06257087,157.17,157.13,7.46873928]
[1752155924131,0.7,157.19,157.14,7.46873928]
[1752155924327,0.7,157.18,157.14,7.46873928]
[1752155924755,7.49873928,157.18,157.14,7.46873928]
[1752155925053,13.86120022,157.18,157.14,7.46873928]
[1752155925631,13.16120022,157.18,157.14,7.46873928]
[1752155925966,7.06272367,157.17,157.14,6.79873928]
[1752155926259,7.06272367,157.17,157.14,7.46873928]
[1752155926462,0.7,157.16,157.13,0.03]
[1752155926650,7.49873928,157.16,157.13,0.03]
[1752155926963,6.79873928,157.15,157.13,0.03]
[1752155927142,7.49873928,157.15,157.13,0.03]
[1752155927347,0.7,157.14,157.13,0.03]
[1752155927856,13.86249134,157.14,157.13,0.03]
[1752155931058,13.86249134,157.14,157.1,0.1]
[1752155931059,26.0,157.11,157.1,0.1]
[1752155931260,72.63290085,157.11,157.1,0.1]
[1752155931443,73.46506242,157.11,157.1,0.1]
[1752155931635,74.99356242,157.11,157.1,1e-08]
[1752155931853,0.14216157,157.1,157.09,1e-08]
[1752155932055,13.30627322,157.1,157.09,1e-08]
[1752155932364,13.99627322,157.1,157.09,1e-08]
[1752155935067,27.5285,157.11,157.09,1e-08]
[1752155935239,34.5587318,157.15,157.09,7.50873929]
[1752155935240,6.79873928,157.13,157.09,7.50873929]
[1752155935559,0.69,157.12,157.09,1e-08]
[1752155935939,7.48873928,157.12,157.09,1e-08]
[1752155936139,0.69,157.11,157.09,1e-08]
[1752155936661,7.05537237,157.1,157.09,1e-08]
[1752155936955,13.85411165,157.1,157.09,1e-08]
[1752155937162,13.99627322,157.1,157.09,1e-08]
[1752155937663,14.13843479,157.1,157.09,1e-08]
[1752155938032,21.88493479,157.1,157.09,1e-08]
[1752155938861,21.74277322,157.1,157.09,1e-08]
[1752155939056,47.74277322,157.1,157.09,1e-08]
[1752155941467,21.74277322,157.1,157.09,1e-08]
[1752155943175,15.08619551,157.1,157.09,1e-08]
[1752155943362,21.88493479,157.1,157.09,1e-08]
[1752155944744,31.91996915,157.1,157.09,1e-08]
[1752155947176,54.82061165,157.1,157.09,1e-08]
[1752155947560,55.10493479,157.1,157.09,1e-08]
[1752155950071,55.16493479,157.1,157.09,5.17340331]
[1752155950567,26.0,157.07,157.03,0.71]
[1752155950748,40.01873928,157.06,157.03,0.71]
[1752155950950,6.79873928,157.06,157.03,0.71]
[1752155951665,13.16573278,157.06,157.02,6.79873928]
[1752155952152,32.36668627,157.07,157.03,6.79873928]
[1752155952579,39.85542555,157.07,157.03,6.79873928]
[1752155953163,39.16542555,157.07,157.03,6.79873928]
[1752155953771,39.16542555,157.07,157.01,25.01865228]
[1752155953772,178.06586098,157.09,157.05,6.79873928]
[1752155954074,178.06586098,157.09,157.06,0.69]
[1752155954267,0.69,157.08,157.04,6.79873928]
[1752155954450,0.69,157.08,157.05,0.69]
[1752155954451,6.79873928,157.08,157.05,0.69]
[1752155954646,184.86460026,157.09,157.04,6.79873928]
[1752155954960,178.06586098,157.09,157.06,0.69]
[1752155955274,184.86460026,157.09,157.06,0.69]
[1752155955772,185.55460026,157.09,157.04,6.79873928]
[1752155955956,7.48873928,157.08,157.04,6.79873928]
[1752155956164,40.70873928,157.08,157.03,6.79873928]
[1752155956478,7.48873928,157.07,157.03,6.79873928]
[1752155956666,7.48873928,157.07,157.03,7.48873928]
[1752155957053,0.69,157.07,157.03,7.48873928]
[1752155957258,7.48873928,157.07,157.03,7.48873928]
[1752155957569,6.3669935,157.06,157.03,7.48873928]
[1752155958685,6.3669935,157.06,157.04,0.69]
[1752155959189,6.36673085,157.07,157.04,0.69]
[1752155959481,6.36673085,157.07,157.04,7.48873928]
[1752155959665,6.36673085,157.07,157.04,0.69]
[1752155960261,188.29444394,157.09,157.06,6.79873928]
[1752155960262,145.7,157.09,157.06,6.79873928]
[1752155960461,0.06,157.1,157.08,6.79873928]
[1752155960769,6.42543903,157.1,157.08,7.46873928]
[1752155960979,6.42543903,157.1,157.07,6.79873928]
[1752155961162,6.42543903,157.1,157.07,7.46873928]
[1752155961557,6.42543903,157.1,157.08,0.67]
[1752155962078,0.06,157.1,157.08,0.67]
[1752155962262,0.06,157.1,157.09,7.46873928]
[1752155963758,0.06,157.1,157.09,0.67]
[1752155963954,0.06,157.1,157.09,7.46873928]
[1752155964576,0.06,157.1,157.07,0.67]
[1752155964799,0.74,157.1,157.05,7.0899]
[1752155965082,0.74,157.1,157.06,6.79873928]
[1752155965383,7.04577757,157.09,157.05,7.46873928]
[1752155965589,13.84451685,157.09,157.05,7.46873928]
[1752155965765,7.04577757,157.09,157.05,7.46873928]
[1752155965959,6.42550103,157.1,157.06,0.67]
[1752155966156,6.42550103,157.1,157.07,6.79873928]
[1752155966374,6.42550103,157.1,157.07,7.46873928]
[1752155966575,0.06,157.1,157.08,7.46873928]
[1752155966779,0.06,157.1,157.08,0.67]
[1752155966988,0.06,157.1,157.08,7.46873928]
[1752155967283,6.42537761,157.1,157.08,7.46873928]
[1752155967583,0.06,157.1,157.08,7.46873928]
[1752155968382,0.06,157.1,157.09,0.67]
[1752155968963,0.06,157.1,157.08,6.79873928]
[1752155969163,0.06,157.1,157.08,7.46873928]
[1752155969712,0.06,157.1,157.09,7.46873928]
[1752155970001,152.49873928,157.18,157.1,18.64964886]
[1752155970165,152.49873928,157.18,157.14,6.79873928]
[1752155970377,179.17873928,157.18,157.14,6.79873928]
[1752155970590,179.17873928,157.18,157.13,0.63]
[1752155970591,172.38,157.18,157.13,0.63]
[1752155970771,172.38,157.18,157.14,6.79873928]
[1752155970772,179.17873928,157.18,157.14,6.79873928]
[1752155970968,6.36253737,157.17,157.14,6.79873928]
[1752155971170,7.04253737,157.17,157.14,6.79873928]
[1752155972072,7.04253737,157.17,157.13,0.63]
[1752155972276,7.04253737,157.17,157.14,6.79873928]
[1752155973392,13.84127665,157.17,157.1,25.01485767]
[1752155973696,13.84127665,157.17,157.13,6.79873928]
[1752155974287,6.36253737,157.17,157.13,7.42873928]
[1752155976193,7.04253737,157.17,157.13,7.42873928]
[1752155977284,0.68,157.16,157.11,0.63]
[1752155977491,0.68,157.16,157.13,6.79873928]
[1752155978098,6.36253737,157.17,157.13,0.63]
[1752155978395,7.04253737,157.17,157.14,6.79873928]
[1752155979001,0.68,157.16,157.13,6.79873928]
[1752155979497,13.16127665,157.17,157.13,7.42873928]
[1752155979883,13.84127665,157.17,157.13,7.42873928]
[1752155980790,13.84127665,157.17,157.13,6.79873928]
[1752155981482,13.84127665,157.17,157.13,7.42873928]
[1752155981679,6.36253737,157.17,157.15,6.79873928]
[1752155982604,6.36213258,157.18,157.12,6.36427886]
[1752155982800,6.36190477,157.19,157.16,0.63]
[1752155983008,6.36190477,157.19,157.17,6.79873928]
[1752155983710,6.36190477,157.19,157.16,7.42873928]
[1752155984095,6.36132315,157.2,157.16,7.42873928]
[1752155984288,7.04132315,157.2,157.16,7.42873928]
[1752155984999,7.47873928,157.19,157.15,6.79873928]
[1752155985207,0.68,157.19,157.16,6.79873928]
[1752155985598,13.16006243,157.2,157.16,6.79873928]
[1752155985803,7.04132315,157.2,157.16,7.42873928]
[1752155985992,6.36132315,157.2,157.17,7.42873928]
[1752155986895,6.36132315,157.2,157.17,0.63]
[1752155987213,6.36132315,157.2,157.17,6.79873928]
[1752155987508,6.36132315,157.2,157.17,7.42873928]
[1752155988492,0.68,157.19,157.15,0.63]
[1752155988688,0.68,157.19,157.16,6.79873928]
[1752155989492,0.68,157.19,157.15,0.63]
[1752155989705,0.68,157.19,157.16,6.79873928]
[1752155990205,13.16006243,157.2,157.16,6.79873928]
[1752155990206,6.36132315,157.2,157.16,7.42873928]
[1752155990379,6.36132315,157.2,157.17,0.63]
[1752155990581,6.36107361,157.21,157.18,7.42873928]
[1752155990780,6.42075314,157.22,157.19,7.42873928]
[1752155991002,6.42075314,157.22,157.2,6.79873928]
[1752155991409,6.42075314,157.22,157.19,7.42873928]
[1752155991789,6.42075314,157.22,157.19,0.63]
[1752155991990,7.07075314,157.22,157.18,6.79873928]
[1752155992797,7.07075314,157.22,157.18,7.42873928]
[1752155993013,0.65,157.21,157.17,25.44838814]
[1752155993386,13.21949242,157.22,157.17,26.07838814]
[1752155993590,13.86949242,157.22,157.17,26.07838814]
[1752155993795,7.07075314,157.22,157.19,6.79873928]
[1752155994102,13.21949242,157.22,157.18,6.79873928]
[1752155996609,7.07075314,157.22,157.18,7.42873928]
[1752155998215,7.07075314,157.22,157.19,6.79873928]
[1752155998418,6.42075314,157.22,157.19,7.42873928]
[1752155998722,7.07075314,157.22,157.19,6.79873928]
[1752155999622,0.06,157.22,157.21,6.79873928]
[1752155999923,0.06,157.22,157.21,26.07838814]
[1752156000601,0.06,157.22,157.21,26.22054971]
[1752156000900,0.06,157.22,157.21,26.36271128]
[1752156001312,0.06,157.22,157.21,26.22054971]